[Event "*** Titled Tuesday 3|2 Blitz (Early)"]
[Site "Chess.com"]
[Date "2016.12.06"]
[Round "8"]
[White "AdrianaNikolova"]
[Black "biostatistician"]
[Result "0-1"]
[WhiteElo "2263"]
[BlackElo "2484"]
[TimeControl "180+2"]
[EndTime "12:49:42 PST"]
[Termination "biostatistician won by resignation"]

1. e4 {[%clk 0:03:01.9]} 1... e6 {[%clk 0:03:00.5]} 2. d4 {[%clk 0:03:01.5]}
2... d5 {[%clk 0:03:02.4]} 3. Nd2 {[%clk 0:03:01.4]} 3... Nc6 {[%clk 0:03:02.3]}
4. Ngf3 {[%clk 0:03:01.1]} 4... Nf6 {[%clk 0:03:02.7]} 5. e5 {[%clk 0:03:01.4]}
5... Ne4 {[%clk 0:03:04.3]} 6. Bd3 {[%clk 0:02:45.8]} 6... Nxd2 {[%clk
0:03:04.7]} 7. Bxd2 {[%clk 0:02:47.6]} 7... Nb4 {[%clk 0:03:06.5]} 8. Be2 {[%clk
0:02:47.7]} 8... c5 {[%clk 0:03:07]} 9. c3 {[%clk 0:02:30.7]} 9... Nc6 {[%clk
0:03:07.7]} 10. O-O {[%clk 0:02:26]} 10... Bd7 {[%clk 0:03:08.3]} 11. Bg5 {[%clk
0:02:08.4]} 11... Qb6 {[%clk 0:03:07.5]} 12. Qd2 {[%clk 0:02:02.3]} 12... cxd4
{[%clk 0:03:06.2]} 13. cxd4 {[%clk 0:02:02.2]} 13... h6 {[%clk 0:03:00.4]} 14.
Be3 {[%clk 0:01:43]} 14... Bb4 {[%clk 0:02:55.4]} 15. Qd3 {[%clk 0:01:37.8]}
15... Rc8 {[%clk 0:02:54.2]} 16. a3 {[%clk 0:01:38.9]} 16... Be7 {[%clk
0:02:54.8]} 17. b4 {[%clk 0:01:39.1]} 17... a5 {[%clk 0:02:51.2]} 18. b5 {[%clk
0:01:39.8]} 18... Na7 {[%clk 0:02:49.2]} 19. a4 {[%clk 0:01:40.9]} 19... O-O
{[%clk 0:02:47.9]} 20. Bd1 {[%clk 0:01:33.1]} 20... Nxb5 {[%clk 0:01:50.7]} 21.
Bc2 {[%clk 0:01:22.3]} 21... Rxc2 {[%clk 0:01:50.5]} 22. Qxc2 {[%clk 0:01:18]}
22... Na7 {[%clk 0:01:47.5]} 23. Rfb1 {[%clk 0:01:15.2]} 23... Qc6 {[%clk
0:01:44.5]} 24. Qxc6 {[%clk 0:01:07.2]} 24... Bxc6 {[%clk 0:01:46.4]} 25. Bd2
{[%clk 0:01:06.9]} 25... Bd8 {[%clk 0:01:46.7]} 26. Rc1 {[%clk 0:01:01]} 26...
Nc8 {[%clk 0:01:41]} 27. Rc5 {[%clk 0:00:45.7]} 27... Bb6 {[%clk 0:01:39.4]} 28.
Rc2 {[%clk 0:00:46]} 28... Ne7 {[%clk 0:01:35.8]} 29. Rb1 {[%clk 0:00:24.5]}
29... Bd8 {[%clk 0:01:25.4]} 30. Rc5 {[%clk 0:00:24.7]} 30... b6 {[%clk
0:01:20.3]} 31. Rc2 {[%clk 0:00:13.9]} 31... Bxa4 {[%clk 0:01:21.2]} 32. Rcb2
{[%clk 0:00:13.5]} 32... b5 {[%clk 0:01:20.7]} 33. Rxb5 {[%clk 0:00:11.6]} 33...
Bxb5 {[%clk 0:01:20.7]} 34. Rxb5 {[%clk 0:00:13.5]} 34... a4 {[%clk 0:01:09.5]}
35. Rb4 {[%clk 0:00:14.5]} 35... a3 {[%clk 0:00:53.9]} 36. Ra4 {[%clk
0:00:15.1]} 36... Nc6 {[%clk 0:00:54.9]} 37. Rxa3 {[%clk 0:00:15.2]} 37... Bb6
{[%clk 0:00:55.7]} 38. Ra6 {[%clk 0:00:15.2]} 38... Rb8 {[%clk 0:00:55.9]} 39.
g3 {[%clk 0:00:09.9]} 39... Nxd4 {[%clk 0:00:53.8]} 40. Nxd4 {[%clk 0:00:03.4]}
40... Bxd4 {[%clk 0:00:55.7]} 41. Bf4 {[%clk 0:00:04.3]} 41... g5 {[%clk
0:00:56.2]} 42. Be3 {[%clk 0:00:04.7]} 42... Bxe5 {[%clk 0:00:56.7]} 43. Ra7
{[%clk 0:00:05.8]} 43... Kg7 {[%clk 0:00:54.2]} 44. Kg2 {[%clk 0:00:07.1]} 44...
Rb3 {[%clk 0:00:53.4]} 45. Bc5 {[%clk 0:00:07.9]} 45... Rb5 {[%clk 0:00:49.8]}
46. Be7 {[%clk 0:00:08]} 46... d4 {[%clk 0:00:49.6]} 47. Rd7 {[%clk 0:00:06.6]}
47... Kg6 {[%clk 0:00:42.4]} 48. Rd8 {[%clk 0:00:07.5]} 48... g4 {[%clk
0:00:38.9]} 49. h3 {[%clk 0:00:07.2]} 49... h5 {[%clk 0:00:39.4]} 50. hxg4
{[%clk 0:00:07.9]} 50... hxg4 {[%clk 0:00:41.3]} 51. Rg8+ {[%clk 0:00:09]} 51...
Kh7 {[%clk 0:00:19.5]} 52. Rxg4 {[%clk 0:00:08.3]} 52... d3 {[%clk 0:00:20.9]}
53. Rh4+ {[%clk 0:00:08.8]} 53... Kg6 {[%clk 0:00:21.5]} 54. Rg4+ {[%clk
0:00:08.9]} 54... Kf5 {[%clk 0:00:22.9]} 55. Rg5+ {[%clk 0:00:08.9]} 55... Ke4
{[%clk 0:00:24.2]} 56. Rg4+ {[%clk 0:00:07.1]} 56... Kd5 {[%clk 0:00:23.5]} 57.
Bg5 {[%clk 0:00:04.9]} 57... Rb2 {[%clk 0:00:22.7]} 58. Kf3 {[%clk 0:00:05.8]}
58... Bd4 {[%clk 0:00:19.5]} 59. Rxd4+ {[%clk 0:00:05]} 59... Kxd4 {[%clk
0:00:21.4]} 60. Bf6+ {[%clk 0:00:06.5]} 60... e5 {[%clk 0:00:23]} 61. Kg4 {[%clk
0:00:06.8]} 61... Rxf2 {[%clk 0:00:23.5]} 62. Bg5 {[%clk 0:00:05.8]} 62... d2
{[%clk 0:00:23.3]} 63. Bxd2 {[%clk 0:00:06.7]} 63... Rxd2 {[%clk 0:00:24.5]} 64.
Kf5 {[%clk 0:00:08.2]} 64... e4 {[%clk 0:00:25.6]} 0-1

[Event "*** Titled Tuesday 3|2 Blitz (Early)"]
[Site "Chess.com"]
[Date "2016.12.06"]
[Round "8"]
[White "PowerThinking2650"]
[Black "stefanodinn"]
[Result "0-1"]
[WhiteElo "2133"]
[BlackElo "2191"]
[TimeControl "180+2"]
[EndTime "12:49:43 PST"]
[Termination "stefanodinn won by resignation"]

1. e4 {[%clk 0:03:01.9]} 1... c5 {[%clk 0:02:55]} 2. Nf3 {[%clk 0:03:02]} 2...
d6 {[%clk 0:02:55.9]} 3. d4 {[%clk 0:03:02.1]} 3... cxd4 {[%clk 0:02:56.6]} 4.
Nxd4 {[%clk 0:03:04]} 4... Nf6 {[%clk 0:02:57.8]} 5. Nc3 {[%clk 0:03:05.5]} 5...
a6 {[%clk 0:02:57.2]} 6. Be3 {[%clk 0:03:03.8]} 6... e6 {[%clk 0:02:52.6]} 7. f3
{[%clk 0:03:03.8]} 7... h5 {[%clk 0:02:52.6]} 8. Qd2 {[%clk 0:03:04.6]} 8...
Nbd7 {[%clk 0:02:52.7]} 9. O-O-O {[%clk 0:03:01.1]} 9... b5 {[%clk 0:02:53.4]}
10. Bd3 {[%clk 0:02:57.5]} 10... Bb7 {[%clk 0:02:48.7]} 11. Qf2 {[%clk
0:02:55.8]} 11... Qa5 {[%clk 0:02:15.4]} 12. Kb1 {[%clk 0:02:55.4]} 12... Rc8
{[%clk 0:02:13.8]} 13. Nce2 {[%clk 0:02:55]} 13... Be7 {[%clk 0:01:58.6]} 14. g3
{[%clk 0:02:52.9]} 14... d5 {[%clk 0:01:26.6]} 15. exd5 {[%clk 0:02:48.5]} 15...
Nxd5 {[%clk 0:01:27.2]} 16. Bd2 {[%clk 0:02:43.4]} 16... Qb6 {[%clk 0:01:08.8]}
17. f4 {[%clk 0:02:29.4]} 17... b4 {[%clk 0:01:01.2]} 18. Ka1 {[%clk 0:02:20]}
18... Bf6 {[%clk 0:00:41]} 19. Rhf1 {[%clk 0:02:02.9]} 19... Nc5 {[%clk
0:00:27.5]} 20. Nf3 {[%clk 0:01:48.4]} 20... Nxd3 {[%clk 0:00:18.6]} 21. Qxb6
{[%clk 0:01:48.9]} 21... Bxb2+ {[%clk 0:00:14.9]} 22. Kb1 {[%clk 0:01:48.5]}
22... Nxb6 {[%clk 0:00:15.3]} 23. cxd3 {[%clk 0:01:47.1]} 23... Bc3 {[%clk
0:00:15]} 24. Bxc3 {[%clk 0:01:35.3]} 24... bxc3 {[%clk 0:00:15.8]} 25. Kc2
{[%clk 0:01:36.1]} 25... Nd5 {[%clk 0:00:15.6]} 26. Rb1 {[%clk 0:01:36.1]} 26...
Bc6 {[%clk 0:00:15.3]} 27. Rfe1 {[%clk 0:01:27.4]} 27... Ba4+ {[%clk 0:00:15.2]}
28. Kc1 {[%clk 0:01:26.7]} 28... O-O {[%clk 0:00:10.1]} 29. Ned4 {[%clk
0:01:24.6]} 29... Rfd8 {[%clk 0:00:08.7]} 30. Nc2 {[%clk 0:01:23.5]} 30... g6
{[%clk 0:00:05.6]} 31. Ne5 {[%clk 0:01:20.9]} 31... a5 {[%clk 0:00:04.8]} 32.
Re4 {[%clk 0:01:20.7]} 32... Bxc2 {[%clk 0:00:05.4]} 33. Kxc2 {[%clk 0:01:20.4]}
33... Nb4+ {[%clk 0:00:06.3]} 34. Rbxb4 {[%clk 0:01:20.9]} 34... axb4 {[%clk
0:00:07.4]} 35. Rxb4 {[%clk 0:01:22.1]} 35... Ra8 {[%clk 0:00:06.8]} 36. a4
{[%clk 0:01:21.4]} 36... Rdc8 {[%clk 0:00:04.3]} 37. Nc4 {[%clk 0:01:17.2]}
37... Rcb8 {[%clk 0:00:03.5]} 38. Rxb8+ {[%clk 0:01:14.4]} 38... Rxb8 {[%clk
0:00:04.3]} 39. Kxc3 {[%clk 0:01:10.4]} 39... Kf8 {[%clk 0:00:04.6]} 40. a5
{[%clk 0:01:11.8]} 40... Ke7 {[%clk 0:00:05.7]} 41. Nb6 {[%clk 0:01:13]} 41...
Kd6 {[%clk 0:00:05.1]} 42. Kc4 {[%clk 0:01:10.3]} 42... Kc6 {[%clk 0:00:05.3]}
43. d4 {[%clk 0:01:11.6]} 43... Rb7 {[%clk 0:00:03.6]} 44. d5+ {[%clk
0:01:09.7]} 44... exd5+ {[%clk 0:00:04.3]} 45. Nxd5 {[%clk 0:01:10.9]} 45... Ra7
{[%clk 0:00:05.5]} 46. a6 {[%clk 0:01:07.6]} 46... Kd6 {[%clk 0:00:04.6]} 47.
Nb4 {[%clk 0:01:06.1]} 47... h4 {[%clk 0:00:04.7]} 48. Kb5 {[%clk 0:01:06.7]}
48... h3 {[%clk 0:00:04.1]} 49. Kb6 {[%clk 0:01:06.7]} 49... Ra8 {[%clk
0:00:04.4]} 50. Kb7 {[%clk 0:01:07.1]} 50... Re8 {[%clk 0:00:04.2]} 51. a7
{[%clk 0:01:06.4]} 51... Re7+ {[%clk 0:00:02.8]} 52. Kb6 {[%clk 0:01:07.6]}
52... Re8 {[%clk 0:00:03.6]} 53. Na6 {[%clk 0:01:03.5]} 53... Ra8 {[%clk
0:00:03.2]} 54. Kb7 {[%clk 0:00:56.4]} 54... Rxa7+ {[%clk 0:00:03.7]} 55. Kxa7
{[%clk 0:00:57.8]} 55... Kd5 {[%clk 0:00:04.9]} 56. Kb6 {[%clk 0:00:29.6]} 56...
Ke4 {[%clk 0:00:05.4]} 57. Nc5+ {[%clk 0:00:28.8]} 57... Kf3 {[%clk 0:00:05.7]}
58. Nd7 {[%clk 0:00:30.1]} 58... Kg2 {[%clk 0:00:05.3]} 59. Ne5 {[%clk
0:00:31.1]} 59... Kxh2 {[%clk 0:00:06]} 60. Nxf7 {[%clk 0:00:28.2]} 60... Kxg3
{[%clk 0:00:05.4]} 61. Ne5 {[%clk 0:00:19.4]} 61... h2 {[%clk 0:00:06]} 62. Nxg6
{[%clk 0:00:20.4]} 62... h1=Q {[%clk 0:00:06.5]} 0-1

[Event "*** Titled Tuesday 3|2 Blitz (Early)"]
[Site "Chess.com"]
[Date "2016.12.06"]
[Round "8"]
[White "ulises2013"]
[Black "Peroncio"]
[Result "1-0"]
[WhiteElo "2311"]
[BlackElo "2504"]
[TimeControl "180+2"]
[EndTime "12:50:39 PST"]
[Termination "ulises2013 won by resignation"]

1. e4 {[%clk 0:03:02]} 1... e5 {[%clk 0:03:01.3]} 2. Nf3 {[%clk 0:03:02.9]} 2...
Nc6 {[%clk 0:03:03]} 3. Bc4 {[%clk 0:03:03.7]} 3... Nf6 {[%clk 0:03:03.8]} 4.
O-O {[%clk 0:02:48.9]} 4... Be7 {[%clk 0:02:52.8]} 5. d3 {[%clk 0:02:47.2]} 5...
O-O {[%clk 0:02:52.6]} 6. Nc3 {[%clk 0:02:48]} 6... d6 {[%clk 0:02:53.2]} 7. Bg5
{[%clk 0:02:48.3]} 7... Na5 {[%clk 0:02:52.7]} 8. Bb3 {[%clk 0:02:46.3]} 8...
Nxb3 {[%clk 0:02:51.7]} 9. axb3 {[%clk 0:02:48.2]} 9... Be6 {[%clk 0:02:46.4]}
10. Be3 {[%clk 0:02:47.9]} 10... a6 {[%clk 0:02:45.7]} 11. Ng5 {[%clk
0:02:48.2]} 11... Bd7 {[%clk 0:02:41.8]} 12. f4 {[%clk 0:02:49.1]} 12... Ng4
{[%clk 0:02:39.6]} 13. Bd2 {[%clk 0:02:34]} 13... exf4 {[%clk 0:02:38.5]} 14.
Nh3 {[%clk 0:02:30.8]} 14... Ne3 {[%clk 0:02:35.7]} 15. Bxe3 {[%clk 0:02:27.7]}
15... fxe3 {[%clk 0:02:37.6]} 16. Qf3 {[%clk 0:02:23.5]} 16... Bf6 {[%clk
0:02:31.8]} 17. Qxe3 {[%clk 0:02:20.5]} 17... c6 {[%clk 0:02:29]} 18. Nf4 {[%clk
0:02:12.3]} 18... Re8 {[%clk 0:02:22.3]} 19. Qf2 {[%clk 0:01:54.7]} 19... Qe7
{[%clk 0:02:20.4]} 20. Kh1 {[%clk 0:01:50.1]} 20... Rf8 {[%clk 0:02:04.3]} 21.
Rae1 {[%clk 0:01:44.3]} 21... Rae8 {[%clk 0:02:04.1]} 22. d4 {[%clk 0:01:40.2]}
22... Bg5 {[%clk 0:02:04.4]} 23. Nd3 {[%clk 0:01:37.3]} 23... Qd8 {[%clk
0:02:03.1]} 24. e5 {[%clk 0:01:33.7]} 24... Be6 {[%clk 0:02:01.2]} 25. exd6
{[%clk 0:01:26.7]} 25... Qxd6 {[%clk 0:02:03.1]} 26. Ne4 {[%clk 0:01:27]} 26...
Qd8 {[%clk 0:02:04.7]} 27. Nxg5 {[%clk 0:01:27]} 27... Qxg5 {[%clk 0:02:06.6]}
28. Re5 {[%clk 0:01:16.4]} 28... Qg6 {[%clk 0:01:49.1]} 29. Rfe1 {[%clk
0:01:11.2]} 29... Bd7 {[%clk 0:01:44.8]} 30. Rxe8 {[%clk 0:01:07.4]} 30... Rxe8
{[%clk 0:01:46.7]} 31. Rxe8+ {[%clk 0:01:08.5]} 31... Bxe8 {[%clk 0:01:48]} 32.
Qe3 {[%clk 0:01:09]} 32... Kf8 {[%clk 0:01:42.5]} 33. h3 {[%clk 0:01:04.4]}
33... Qd6 {[%clk 0:01:28]} 34. Qe4 {[%clk 0:00:55.7]} 34... h6 {[%clk
0:01:19.4]} 35. Nc5 {[%clk 0:00:52.4]} 35... b6 {[%clk 0:00:58.2]} 36. Nd3
{[%clk 0:00:42.3]} 36... a5 {[%clk 0:00:57.2]} 37. Ne5 {[%clk 0:00:32.3]} 37...
f6 {[%clk 0:00:57]} 38. Nf3 {[%clk 0:00:31.2]} 38... Bf7 {[%clk 0:00:55.6]} 39.
Kg1 {[%clk 0:00:19.4]} 39... Bd5 {[%clk 0:00:55.2]} 40. Qg4 {[%clk 0:00:15.2]}
40... Qe7 {[%clk 0:00:48.9]} 41. Kf2 {[%clk 0:00:13.7]} 41... Kf7 {[%clk
0:00:30.1]} 42. Qf5 {[%clk 0:00:12.8]} 42... Kg8 {[%clk 0:00:21.3]} 43. Qc8+
{[%clk 0:00:13.1]} 43... Kf7 {[%clk 0:00:21.4]} 44. Qf5 {[%clk 0:00:14.1]} 44...
b5 {[%clk 0:00:20.8]} 45. Ne5+ {[%clk 0:00:14.4]} 45... Kg8 {[%clk 0:00:18.4]}
46. Qc8+ {[%clk 0:00:15.2]} 46... Kh7 {[%clk 0:00:17.9]} 47. Qf5+ {[%clk
0:00:15.9]} 47... Kg8 {[%clk 0:00:19.3]} 48. Qc8+ {[%clk 0:00:17.4]} 48... Qf8
{[%clk 0:00:19]} 49. Qxf8+ {[%clk 0:00:18.5]} 49... Kxf8 {[%clk 0:00:20.9]} 50.
Nd3 {[%clk 0:00:19.7]} 50... Ke7 {[%clk 0:00:21.7]} 51. g3 {[%clk 0:00:20.8]}
51... Kd6 {[%clk 0:00:22.9]} 52. Ke3 {[%clk 0:00:21.9]} 52... Be6 {[%clk
0:00:24.2]} 53. h4 {[%clk 0:00:23.1]} 53... g5 {[%clk 0:00:25.9]} 54. hxg5
{[%clk 0:00:24]} 54... hxg5 {[%clk 0:00:27.8]} 55. Nc5 {[%clk 0:00:25.4]} 55...
Bf5 {[%clk 0:00:28.8]} 56. c3 {[%clk 0:00:24.7]} 56... Bc8 {[%clk 0:00:28.1]}
57. Kd3 {[%clk 0:00:25.3]} 57... f5 {[%clk 0:00:29]} 58. Ke3 {[%clk 0:00:26.7]}
58... Kd5 {[%clk 0:00:29.7]} 59. Nd3 {[%clk 0:00:27.1]} 59... Be6 {[%clk
0:00:24]} 60. Nc5 {[%clk 0:00:28.2]} 60... Bc8 {[%clk 0:00:22.2]} 61. Nd3 {[%clk
0:00:29.2]} 61... Kd6 {[%clk 0:00:23.8]} 62. Nc5 {[%clk 0:00:30.3]} 62... Be6
{[%clk 0:00:25.4]} 63. Nb7+ {[%clk 0:00:29.2]} 63... Kc7 {[%clk 0:00:27]} 64.
Nxa5 {[%clk 0:00:30.7]} 64... Kb6 {[%clk 0:00:28.7]} 65. b4 {[%clk 0:00:31.2]}
65... Bd5 {[%clk 0:00:30.2]} 66. b3 {[%clk 0:00:30.4]} 66... Be6 {[%clk
0:00:30.2]} 67. c4 {[%clk 0:00:28.9]} 67... Bf7 {[%clk 0:00:31.2]} 68. Kf3
{[%clk 0:00:25.4]} 68... Bh5+ {[%clk 0:00:31.2]} 69. Ke3 {[%clk 0:00:26.1]}
69... Bf7 {[%clk 0:00:32.9]} 70. Kd3 {[%clk 0:00:27]} 70... Bh5 {[%clk 0:00:33]}
71. Ke3 {[%clk 0:00:28.1]} 71... Be8 {[%clk 0:00:34.1]} 72. d5 {[%clk
0:00:16.2]} 72... c5 {[%clk 0:00:31]} 73. cxb5 {[%clk 0:00:13.4]} 73... cxb4
{[%clk 0:00:30.5]} 74. Nc4+ {[%clk 0:00:13.8]} 74... Kc5 {[%clk 0:00:32.2]} 75.
b6 {[%clk 0:00:13.2]} 75... Bc6 {[%clk 0:00:26.9]} 76. dxc6 {[%clk 0:00:13.7]}
76... Kxc6 {[%clk 0:00:28.8]} 77. Kd4 {[%clk 0:00:14.8]} 77... f4 {[%clk
0:00:29]} 78. gxf4 {[%clk 0:00:16.1]} 78... g4 {[%clk 0:00:30.9]} 79. Ke3 {[%clk
0:00:17]} 79... g3 {[%clk 0:00:32.8]} 80. Kf3 {[%clk 0:00:18.4]} 1-0

[Event "*** Titled Tuesday 3|2 Blitz (Early)"]
[Site "Chess.com"]
[Date "2016.12.06"]
[Round "8"]
[White "Iball95"]
[Black "Firebullet"]
[Result "1/2-1/2"]
[WhiteElo "2478"]
[BlackElo "2334"]
[TimeControl "180+2"]
[EndTime "12:52:01 PST"]
[Termination "Game drawn by repetition"]

1. e4 {[%clk 0:03:02]} 1... c5 {[%clk 0:02:58.4]} 2. Nf3 {[%clk 0:03:02.5]} 2...
Nc6 {[%clk 0:02:58.9]} 3. Bb5 {[%clk 0:03:03.9]} 3... Nf6 {[%clk 0:02:57.4]} 4.
Bxc6 {[%clk 0:03:00]} 4... dxc6 {[%clk 0:02:58]} 5. d3 {[%clk 0:03:00.7]} 5...
Qc7 {[%clk 0:02:57.9]} 6. e5 {[%clk 0:02:40.1]} 6... Nd5 {[%clk 0:02:55.2]} 7.
c4 {[%clk 0:02:40.2]} 7... Nb6 {[%clk 0:02:51.3]} 8. O-O {[%clk 0:02:40.9]} 8...
Bf5 {[%clk 0:02:51.5]} 9. Qe2 {[%clk 0:02:28.7]} 9... Rd8 {[%clk 0:02:36.9]} 10.
Rd1 {[%clk 0:02:28.9]} 10... g6 {[%clk 0:02:33.8]} 11. b3 {[%clk 0:02:26.8]}
11... Bg7 {[%clk 0:02:34.2]} 12. Bb2 {[%clk 0:02:26.4]} 12... O-O {[%clk
0:02:30.5]} 13. h3 {[%clk 0:02:26.1]} 13... Rfe8 {[%clk 0:02:25.5]} 14. g4
{[%clk 0:02:16.3]} 14... Bc8 {[%clk 0:02:25.9]} 15. Nbd2 {[%clk 0:02:06.6]}
15... Nd7 {[%clk 0:02:12]} 16. Nf1 {[%clk 0:02:04.9]} 16... Nf8 {[%clk 0:02:12]}
17. Qe3 {[%clk 0:01:48.9]} 17... Ne6 {[%clk 0:02:10.4]} 18. Ng3 {[%clk 0:01:50]}
18... Nd4 {[%clk 0:01:52.8]} 19. Nxd4 {[%clk 0:01:47.1]} 19... cxd4 {[%clk
0:01:46.2]} 20. Bxd4 {[%clk 0:01:47.7]} 20... Rxd4 {[%clk 0:01:42.5]} 21. Qxd4
{[%clk 0:01:49.6]} 21... Bxe5 {[%clk 0:01:43]} 22. Qe3 {[%clk 0:01:47.8]} 22...
Bxa1 {[%clk 0:01:42.3]} 23. Rxa1 {[%clk 0:01:49.7]} 23... c5 {[%clk 0:01:38.3]}
24. Ne4 {[%clk 0:01:49.3]} 24... Qe5 {[%clk 0:01:26.7]} 25. Re1 {[%clk
0:01:45.2]} 25... b6 {[%clk 0:01:25.6]} 26. f4 {[%clk 0:01:43.4]} 26... Qe6
{[%clk 0:01:01.9]} 27. Ng5 {[%clk 0:01:43.4]} 27... Qxe3+ {[%clk 0:01:02]} 28.
Rxe3 {[%clk 0:01:45.3]} 28... e6 {[%clk 0:01:01.6]} 29. Ne4 {[%clk 0:01:39.3]}
29... Rd8 {[%clk 0:01:01.8]} 30. Kf2 {[%clk 0:01:39.2]} 30... Kg7 {[%clk
0:00:48.4]} 31. g5 {[%clk 0:01:39]} 31... Rd4 {[%clk 0:00:44.8]} 32. Kg3 {[%clk
0:01:30.5]} 32... Bb7 {[%clk 0:00:45.3]} 33. Nf6 {[%clk 0:01:31.7]} 33... Bc6
{[%clk 0:00:43.1]} 34. h4 {[%clk 0:01:31.9]} 34... h5 {[%clk 0:00:42]} 35. a3
{[%clk 0:01:21.7]} 35... Kf8 {[%clk 0:00:41.4]} 36. Ne4 {[%clk 0:01:19.1]} 36...
Bxe4 {[%clk 0:00:41.4]} 37. dxe4 {[%clk 0:01:21]} 37... Ke7 {[%clk 0:00:37.1]}
38. f5 {[%clk 0:01:20.3]} 38... Kd6 {[%clk 0:00:34.8]} 39. e5+ {[%clk
0:01:17.7]} 39... Ke7 {[%clk 0:00:35.2]} 40. fxg6 {[%clk 0:01:18.5]} 40... fxg6
{[%clk 0:00:33]} 41. Rf3 {[%clk 0:01:20.2]} 41... Rg4+ {[%clk 0:00:26.9]} 42.
Kh3 {[%clk 0:01:21.1]} 42... Re4 {[%clk 0:00:27.9]} 43. Rf6 {[%clk 0:01:22.1]}
43... Re3+ {[%clk 0:00:26.5]} 44. Kg2 {[%clk 0:01:22.8]} 44... Rxb3 {[%clk
0:00:26.5]} 45. Rxg6 {[%clk 0:01:24.4]} 45... Rxa3 {[%clk 0:00:20.5]} 46. Rh6
{[%clk 0:01:25.4]} 46... b5 {[%clk 0:00:19.7]} 47. cxb5 {[%clk 0:01:23.3]} 47...
c4 {[%clk 0:00:20.6]} 48. Rh7+ {[%clk 0:01:18.7]} 48... Kf8 {[%clk 0:00:21.1]}
49. Rc7 {[%clk 0:01:19.6]} 49... c3 {[%clk 0:00:21]} 50. Rc6 {[%clk 0:01:19]}
50... Ra2+ {[%clk 0:00:20.2]} 51. Kf3 {[%clk 0:01:19.5]} 51... c2 {[%clk
0:00:21.5]} 52. Ke3 {[%clk 0:01:18.8]} 52... Rb2 {[%clk 0:00:22.9]} 53. Kd4
{[%clk 0:01:11.7]} 53... Kf7 {[%clk 0:00:22.5]} 54. Rc5 {[%clk 0:01:03.9]} 54...
Kg6 {[%clk 0:00:21.2]} 55. Kd3 {[%clk 0:01:02.6]} 55... c1=Q {[%clk 0:00:16.8]}
56. Rxc1 {[%clk 0:01:02.7]} 56... Rxb5 {[%clk 0:00:17.7]} 57. Rf1 {[%clk
0:01:00.3]} 57... Rxe5 {[%clk 0:00:17.9]} 58. Rf6+ {[%clk 0:01:01.9]} 58... Kg7
{[%clk 0:00:18.5]} 59. Rh6 {[%clk 0:01:03.5]} 59... a5 {[%clk 0:00:17.5]} 60.
Rxh5 {[%clk 0:01:04.2]} 60... a4 {[%clk 0:00:18]} 61. Rh6 {[%clk 0:01:00.9]}
61... a3 {[%clk 0:00:18.6]} 62. Rf6 {[%clk 0:01:01.8]} 62... a2 {[%clk
0:00:16.1]} 63. Rf1 {[%clk 0:01:02.6]} 63... Ra5 {[%clk 0:00:16.9]} 64. Ra1
{[%clk 0:01:03.5]} 64... Kg6 {[%clk 0:00:16.4]} 65. Ke4 {[%clk 0:01:04.7]} 65...
Kh5 {[%clk 0:00:17.4]} 66. Kf4 {[%clk 0:01:04.1]} 66... Kg6 {[%clk 0:00:15.4]}
67. Ke4 {[%clk 0:01:05.3]} 67... Kh5 {[%clk 0:00:14.7]} 68. Kf4 {[%clk
0:01:06.4]} 68... Kg6 {[%clk 0:00:15]} 69. Ke4 {[%clk 0:01:06.1]} 69... Kf7
{[%clk 0:00:16.3]} 70. Kf4 {[%clk 0:01:06.4]} 70... Kg6 {[%clk 0:00:17.5]} 71.
Ke4 {[%clk 0:01:06.9]} 71... e5 {[%clk 0:00:17.1]} 72. Kd3 {[%clk 0:00:58.5]}
72... Kh5 {[%clk 0:00:15]} 73. Ke4 {[%clk 0:00:58.7]} 73... Kg6 {[%clk 0:00:15]}
74. Kd3 {[%clk 0:00:59.5]} 74... Kf5 {[%clk 0:00:15.3]} 75. Kc3 {[%clk
0:00:52.3]} 75... e4 {[%clk 0:00:13.3]} 76. Kd4 {[%clk 0:00:52.4]} 76... Ra4+
{[%clk 0:00:13.4]} 77. Ke3 {[%clk 0:00:53.3]} 77... Ke5 {[%clk 0:00:13.5]} 78.
g6 {[%clk 0:00:54.7]} 78... Ra3+ {[%clk 0:00:14.6]} 79. Ke2 {[%clk 0:00:55.6]}
79... Rg3 {[%clk 0:00:15.2]} 80. h5 {[%clk 0:00:54.8]} 80... Rg5 {[%clk
0:00:16.1]} 81. Ke3 {[%clk 0:00:53.5]} 81... Rxh5 {[%clk 0:00:17.3]} 82. Rg1
{[%clk 0:00:48.5]} 82... Rh3+ {[%clk 0:00:06.7]} 83. Ke2 {[%clk 0:00:49.6]}
83... Rh2+ {[%clk 0:00:07.6]} 84. Ke3 {[%clk 0:00:50.5]} 84... Rg2 {[%clk
0:00:06.2]} 85. Ra1 {[%clk 0:00:40.3]} 85... Rxg6 {[%clk 0:00:06.5]} 86. Rxa2
{[%clk 0:00:37.6]} 86... Rg3+ {[%clk 0:00:05.8]} 87. Kf2 {[%clk 0:00:38.6]}
87... Rh3 {[%clk 0:00:06.8]} 88. Ra8 {[%clk 0:00:37.8]} 88... Kf4 {[%clk
0:00:08.2]} 89. Rf8+ {[%clk 0:00:38.2]} 89... Ke5 {[%clk 0:00:09.1]} 90. Re8+
{[%clk 0:00:39.6]} 90... Kf5 {[%clk 0:00:08.8]} 91. Rf8+ {[%clk 0:00:40.7]}
91... Ke5 {[%clk 0:00:10.1]} 92. Re8+ {[%clk 0:00:42.1]} 92... Kf5 {[%clk
0:00:11.5]} 93. Rf8+ {[%clk 0:00:43.5]} 93... Ke5 {[%clk 0:00:11.2]} 1/2-1/2

[Event "*** Titled Tuesday 3|2 Blitz (Early)"]
[Site "Chess.com"]
[Date "2016.12.06"]
[Round "9"]
[White "Sethu0025"]
[Black "VitaliyBernadskiy"]
[Result "1-0"]
[WhiteElo "2622"]
[BlackElo "2588"]
[TimeControl "180+2"]
[EndTime "12:57:59 PST"]
[Termination "Sethu0025 won by checkmate"]

1. e4 {[%clk 0:03:02]} 1... c6 {[%clk 0:02:57.2]} 2. d4 {[%clk 0:03:02.2]} 2...
d5 {[%clk 0:02:58.7]} 3. e5 {[%clk 0:03:03.4]} 3... Bf5 {[%clk 0:02:57.9]} 4.
Nf3 {[%clk 0:03:04.9]} 4... e6 {[%clk 0:02:58.8]} 5. Be2 {[%clk 0:03:06.5]} 5...
Bb4+ {[%clk 0:02:58.6]} 6. c3 {[%clk 0:03:06.9]} 6... Ba5 {[%clk 0:02:59.7]} 7.
Nbd2 {[%clk 0:03:07.8]} 7... Nd7 {[%clk 0:02:53.3]} 8. Nf1 {[%clk 0:03:08.2]}
8... f6 {[%clk 0:02:42.3]} 9. Ng3 {[%clk 0:03:06.4]} 9... Bg6 {[%clk 0:02:27.3]}
10. h4 {[%clk 0:02:50.3]} 10... Bc7 {[%clk 0:02:23.4]} 11. h5 {[%clk 0:02:51]}
11... Bf7 {[%clk 0:02:18.3]} 12. exf6 {[%clk 0:02:45.1]} 12... Ngxf6 {[%clk
0:02:18.9]} 13. h6 {[%clk 0:02:44.7]} 13... g6 {[%clk 0:02:08]} 14. Bg5 {[%clk
0:02:23.4]} 14... O-O {[%clk 0:02:05.1]} 15. Qc2 {[%clk 0:02:23.4]} 15... Qb8
{[%clk 0:01:57.7]} 16. Nf1 {[%clk 0:01:57.2]} 16... Ne4 {[%clk 0:01:55.8]} 17.
Be3 {[%clk 0:01:58.3]} 17... e5 {[%clk 0:01:53]} 18. O-O-O {[%clk 0:01:58.7]}
18... Be6 {[%clk 0:01:51.5]} 19. N1d2 {[%clk 0:01:54.9]} 19... Bf5 {[%clk
0:01:48.7]} 20. Qb3 {[%clk 0:01:47.2]} 20... Nxd2 {[%clk 0:01:45]} 21. Nxd2
{[%clk 0:01:47.9]} 21... a5 {[%clk 0:01:39.6]} 22. a4 {[%clk 0:01:39]} 22...
exd4 {[%clk 0:01:33.5]} 23. Bxd4 {[%clk 0:01:39.9]} 23... Be5 {[%clk 0:01:33.3]}
24. Be3 {[%clk 0:01:37.6]} 24... Bf4 {[%clk 0:01:18.3]} 25. c4 {[%clk
0:01:38.3]} 25... Bxe3 {[%clk 0:01:10]} 26. fxe3 {[%clk 0:01:33.7]} 26... Nc5
{[%clk 0:01:08.8]} 27. Qc3 {[%clk 0:01:34.5]} 27... Nxa4 {[%clk 0:01:02.4]} 28.
Qg7# {[%clk 0:01:34.6]} 1-0